fUST/lending_fUST_20260111
["ID","MTS","AMOUNT","RATE_DAILY","PERIOD"]
[401299269,1768117843837,-1000.0,0.00014247,2]
[401299270,1768117843847,-500.0,0.00014247,2]
[401299271,1768117843856,-1001.8641087,0.00014247,2]
[401299272,1768117843866,-1000.0,0.00014247,2]
[401299273,1768117843876,-1000.0,0.00014247,2]
[401299274,1768117843887,-1000.0,0.00014247,2]
[401299275,1768117843896,-1000.0,0.00014247,2]
[401299276,1768117843906,-1000.0,0.00014247,2]
[401299277,1768117843915,-1000.0,0.00014247,2]
[401299278,1768117843926,-443.77041137,0.00014247,2]
[401299279,1768117843936,-1000.0,0.00014247,2]
[401299280,1768117843947,-1000.0,0.00014247,2]
[401299281,1768117843957,-152.72644825,0.00014247,2]
[401299282,1768117843966,-2580.0,0.00014363,2]
[401299283,1768117843976,-500.80134157,0.00014368,2]
[401299284,1768117843986,-1500.0,0.00014368,2]
[401299285,1768117843995,-1500.0,0.00014368,2]
[401299287,1768117844005,-1500.0,0.00014368,2]
[401299288,1768117844015,-1500.0,0.00014368,2]
[401299289,1768117844024,-500.0,0.00014368,2]
[401299290,1768117844034,-1500.0,0.00014368,2]
[401299291,1768117844054,-554.02767991,0.00014368,2]
[401299292,1768117844064,-1500.0,0.00014368,2]
[401299293,1768117844074,-263.96834089,0.00014368,2]
[401299294,1768117844084,-168.36851892,0.00014368,2]
[401299295,1768117844095,-793.78310386,0.00014368,2]
[401299296,1768117844104,-1500.0,0.00014368,2]
[401299297,1768117844114,-1500.0,0.00014368,2]
[401299298,1768117844125,-1500.0,0.00014368,2]
[401299299,1768117844135,-1512.80470062,0.00014368,2]
[401299300,1768117844144,-1500.0,0.00014368,2]
[401299301,1768117844153,-1500.0,0.00014368,2]
[401299302,1768117844163,-1500.0,0.00014368,2]
[401299303,1768117844172,-323.03430659,0.00014368,2]
[401299304,1768117844182,-223.48736773,0.00014368,2]
[401299305,1768117844192,-1500.0,0.00014368,2]
[401299306,1768117844203,-500.0,0.00014368,2]
[401299307,1768117844214,-1500.0,0.00014368,2]
[401299308,1768117844224,-1500.0,0.00014368,2]
[401299309,1768117844234,-1500.0,0.00014368,2]
[401299310,1768117844244,-1500.0,0.00014368,2]
[401299311,1768117844254,-2580.0,0.000145,2]
[401299312,1768117844264,-5000.0,0.0001451,2]
[401299313,1768117844273,-2586.82893305,0.00014637,2]
[401299314,1768117844284,-650.07420343,0.00014672,2]
[401299315,1768117844293,-801.07,0.000147,2]
[401299316,1768117844303,-100000.0,0.00014736,2]
[401299317,1768117844314,-900.0,0.00014768,2]
[401299318,1768117844324,-602.53259662,0.00014795,2]
[401299319,1768117844334,-1499.24471264,0.00014795,2]
[401299320,1768117844344,-1500.0,0.00014795,2]
[401299321,1768117844353,-661.95893033,0.00014795,2]
[401299322,1768117844363,-1500.0,0.00014795,2]
[401299323,1768117844372,-1500.0,0.00014795,2]
[401299324,1768117844382,-674.14847626,0.00014795,2]
[401299325,1768117844392,-501.33075681,0.00014795,2]
[401299326,1768117844401,-1640.84533084,0.00014795,2]
[401299327,1768117844411,-514.14829436,0.00014795,2]
[401299328,1768117844421,-1514.12213244,0.00014795,2]
[401299329,1768117844431,-155.09397851,0.00014795,2]
[401299330,1768117844441,-839.58703801,0.00014795,2]
[401299331,1768117844451,-1001.3782102,0.00014795,2]
[401299332,1768117844460,-1236.28209818,0.00014795,2]
[401299333,1768117844471,-1000.0,0.00014795,2]
[401299334,1768117844489,-1500.0,0.00014795,2]
[401299336,1768117844504,-488.64589349,0.00014795,2]
[401299337,1768117844516,-1500.0,0.00014795,2]
[401299339,1768117844525,-503.75899236,0.00014795,2]
[401299341,1768117844535,-1500.0,0.00014795,2]
[401299342,1768117844545,-1482.84709438,0.00014795,2]
[401299343,1768117844555,-500.76011771,0.00014795,2]
[401299344,1768117844565,-1608.00999349,0.00014795,2]
[401299345,1768117844575,-788.05151213,0.00014795,2]
[401299346,1768117844584,-1500.0,0.00014795,2]
[401299347,1768117844595,-1500.0,0.00014795,2]
[401299348,1768117844605,-1500.0,0.00014795,2]
[401299349,1768117844616,-1640.95571878,0.00014795,2]
[401299350,1768117844626,-1500.0,0.00014795,2]
[401299351,1768117844637,-1516.76085072,0.00014795,2]
[401299352,1768117844647,-304.84096496,0.00014795,2]
[401299353,1768117844659,-1500.0,0.00014795,2]
[401299354,1768117844669,-1500.0,0.00014795,2]
[401299355,1768117844678,-1003.80919542,0.00014795,2]
[401299356,1768117844690,-1465.81779273,0.00014916,2]
[401299357,1768117844700,-1191.81021696,0.00014916,2]
[401299358,1768117844710,-500.8125859,0.00014916,2]
[401299359,1768117844719,-497.39623951,0.00014916,2]
[401299360,1768117844729,-2000.0,0.00014916,2]
[401299361,1768117844738,-2000.0,0.00014916,2]
[401299362,1768117844748,-2000.0,0.00014916,2]
[401299363,1768117844757,-2000.0,0.00014916,2]
[401299364,1768117844767,-2000.0,0.00014916,2]
[401299365,1768117844776,-1510.52551,0.00014916,2]
[401299366,1768117844786,-1001.19360014,0.00014916,2]
[401299367,1768117844795,-2000.0,0.00014916,2]
[401299368,1768117844808,-2000.0,0.00014916,2]
[401299369,1768117844817,-2000.0,0.00014916,2]
[401299370,1768117844827,-1000.0,0.00014916,2]
[401299371,1768117844836,-2000.0,0.00014916,2]
[401299372,1768117844847,-1000.0,0.00015,2]
[401299373,1768117844856,-585.11053,0.00015068,2]
[401299374,1768117844866,-800.0,0.00015068,2]
[401299375,1768117844876,-801.07,0.000153,2]
[401299376,1768117844886,-1200.0,0.00015316,2]
[401299377,1768117844900,-1143.18421046,0.00015342,2]
[401299378,1768117844910,-500.0,0.00015342,2]
[401299379,1768117844919,-2000.0,0.00015342,2]
[401299380,1768117844929,-2000.0,0.00015342,2]
[401299381,1768117844939,-2000.0,0.00015342,2]
[401299382,1768117844948,-2000.0,0.00015342,2]
[401299383,1768117844958,-1144.01857865,0.00015342,2]
[401299384,1768117844967,-1501.01375621,0.00015342,2]
[401299385,1768117844979,-2000.0,0.00015342,2]
[401299387,1768117845109,-2000.0,0.00015342,2]
[401299388,1768117845130,-2000.0,0.00015342,2]
[401299389,1768117845140,-2000.0,0.00015342,2]
[401299390,1768117845149,-2500.0,0.00015464,2]
[401299391,1768117845159,-2500.0,0.00015464,2]
[401299392,1768117845168,-2500.0,0.00015464,2]
[401299393,1768117845178,-1167.31327235,0.00015464,2]
[401299394,1768117845187,-2500.0,0.00015464,2]
[401299395,1768117845197,-2500.0,0.00015464,2]
[401299396,1768117845206,-728.00390276,0.00015464,2]
[401299397,1768117845215,-2500.0,0.00015464,2]
[401299398,1768117845226,-2500.0,0.00015464,2]
[401299399,1768117845235,-314.11372153,0.00015483,2]
[401299400,1768117845245,-3041.54642333,0.00015524,2]
[401299401,1768117845254,-1000.0,0.00015668,2]
[401299402,1768117845264,-791.0,0.00015668,2]
[401299403,1768117845273,-801.07,0.000158,2]
[401299404,1768117845282,-300.0,0.00015864,2]
[401299405,1768117845292,-2500.0,0.0001589,2]
[401299406,1768117845302,-555.48898116,0.0001589,2]
[401299407,1768117845311,-501.72405702,0.0001589,2]
[401299408,1768117845320,-2500.0,0.0001589,2]
[401299409,1768117845330,-2500.0,0.0001589,2]
[401299410,1768117845339,-2500.0,0.0001589,2]
[401299411,1768117845348,-2000.0,0.0001589,2]
[401299412,1768117845359,-1634.65901332,0.0001589,2]
[401299413,1768117845369,-1208.67496704,0.00015912,2]
[401299414,1768117845378,-3000.0,0.00016012,2]
[401299415,1768117845388,-3000.0,0.00016012,2]
[401299416,1768117845398,-3000.0,0.00016012,2]
[401299417,1768117845408,-3000.0,0.00016012,2]
[401299418,1768117845418,-3000.0,0.00016012,2]
[401299419,1768117845427,-1500.0,0.00016012,2]
[401299420,1768117845438,-1500.0,0.00016012,2]
[401299421,1768117845448,-800.00734843,0.00016164,2]
[401299422,1768117845457,-801.07,0.000163,2]
[401299423,1768117845467,-500.0,0.00016438,2]
[401299424,1768117845476,-500.0,0.00016438,2]
[401299425,1768117845487,-500.0,0.00016438,2]
[401299426,1768117845500,-647.34740616,0.00016438,2]
[401299427,1768117845511,-500.0,0.00016438,2]
[401299428,1768117845520,-500.0,0.00016438,2]
[401299429,1768117845530,-634.57745978,0.00016438,2]
[401299430,1768117845543,-594.49843147,0.00016438,2]
[401299431,1768117845552,-468.6,0.00016438,2]
[401299432,1768117845562,-1552.92932298,0.00016438,2]
[401299433,1768117845571,-3000.0,0.00016438,2]
[401299434,1768117845582,-502.60955562,0.00016438,2]
[401299435,1768117845594,-3000.0,0.00016438,2]
[401299436,1768117845604,-260.15865923,0.00016438,2]
[401299437,1768117845615,-3500.0,0.0001656,2]
[401299438,1768117845625,-2962.04250286,0.0001656,2]
[401299440,1768117845635,-3500.0,0.0001656,2]
[401299442,1768117845645,-3500.0,0.0001656,2]
[401299443,1768117845657,-3500.0,0.0001656,2]
[401299444,1768117845668,-12757.23540207,0.00016658,2]
[401299445,1768117845678,-726.05690254,0.00016672,2]
[401299446,1768117845687,-3588.20550987,0.00016702,2]
[401299447,1768117845697,-801.07,0.000168,2]
[401299448,1768117845707,-3500.0,0.00016986,2]
[401299449,1768117845716,-1500.0,0.00016986,2]
[401299450,1768117845726,-4000.0,0.00017108,2]
[401299451,1768117845736,-1988.46116267,0.00017108,2]
[401299453,1768117845746,-1000.0,0.00017108,2]
[401299454,1768117845755,-4000.0,0.00017108,2]
[401299455,1768117845764,-1000.0,0.00017235,2]
[401299456,1768117845774,-1000.0,0.00017235,2]
[401299457,1768117845783,-801.07,0.000173,2]
[401299458,1768117845793,-5000.0,0.00017412,2]
[401299459,1768117845805,-500.0,0.00017534,2]
[401299460,1768117845815,-2000.0,0.00017656,2]
[401299461,1768117845825,-2657.93100212,0.00017656,2]
[401299462,1768117845834,-381.0,0.00017663,2]
[401299463,1768117845843,-381.0,0.00017713,2]
[401299464,1768117845855,-381.0,0.00017727,2]
[401299465,1768117845865,-381.0,0.0001778,2]
[401299466,1768117845875,-1041.66666667,0.00017782,2]
[401299467,1768117845884,-801.07,0.000178,2]
[401299468,1768117845894,-381.0,0.00017933,2]
[401299470,1768117845904,-381.0,0.00018038,2]
[401299472,1768117845914,-381.0,0.00018063,2]
[401299473,1768117845924,-151.0,0.00018075,2]
[401299474,1768117845934,-151.0,0.00018075,2]
[401299475,1768117845944,-223.13477496,0.00018075,2]
[401299476,1768117845954,-151.0,0.00018075,2]
[401299477,1768117845963,-151.0,0.00018075,2]
[401299478,1768117845973,-151.0,0.00018075,2]
[401299479,1768117845983,-151.0,0.00018075,2]
[401299480,1768117845994,-151.0,0.00018075,2]
[401299481,1768117846004,-151.0,0.00018075,2]
[401299482,1768117846014,-151.0,0.00018075,2]
[401299483,1768117846024,-151.0,0.00018075,2]
[401299484,1768117846034,-151.0,0.00018075,2]
[401299485,1768117846044,-151.0,0.00018075,2]
[401299486,1768117846055,-151.0,0.00018075,2]
[401299487,1768117846064,-151.0,0.00018075,2]
[401299488,1768117846074,-151.0,0.00018075,2]
[401299489,1768117846083,-151.0,0.00018075,2]
[401299490,1768117846092,-151.0,0.00018075,2]
[401299491,1768117846103,-151.0,0.00018075,2]
[401299492,1768117846113,-151.0,0.00018075,2]
[401299493,1768117846122,-151.0,0.00018075,2]
[401299494,1768117846131,-151.0,0.00018075,2]
[401299495,1768117846140,-151.0,0.00018075,2]
[401299496,1768117846150,-151.0,0.00018075,2]
[401299497,1768117846160,-151.0,0.00018075,2]
[401299498,1768117846169,-151.0,0.00018075,2]
[401299499,1768117846179,-151.0,0.00018075,2]
[401299500,1768117846188,-151.0,0.00018075,2]
[401299501,1768117846198,-151.0,0.00018075,2]
[401299502,1768117846208,-151.0,0.00018075,2]
[401299503,1768117846217,-151.0,0.00018075,2]
[401299504,1768117846227,-151.0,0.00018075,2]
[401299505,1768117846236,-151.0,0.00018075,2]
[401299506,1768117846245,-151.0,0.00018075,2]
[401299507,1768117846255,-151.0,0.00018075,2]
[401299508,1768117846264,-151.0,0.00018075,2]
[401299509,1768117846273,-151.0,0.00018075,2]
[401299510,1768117846282,-151.0,0.00018075,2]
[401299511,1768117846292,-151.0,0.00018075,2]
[401299512,1768117846301,-151.0,0.00018075,2]
[401299513,1768117846312,-151.0,0.00018075,2]
[401299514,1768117846321,-381.0,0.00018153,2]
[401299515,1768117846331,-1208.67496696,0.00018241,2]
[401299516,1768117846340,-381.0,0.00018265,2]
[401299517,1768117846349,-801.07,0.000183,2]
[401299518,1768117846359,-468.6,0.00018315,2]
[401299519,1768117846369,-381.0,0.00018323,2]
[401299520,1768117846380,-381.0,0.00018384,2]
[401299521,1768117846389,-381.0,0.00018403,2]
[401299522,1768117846400,-381.0,0.00018486,2]
[401299523,1768117846410,-585.11053,0.00018493,2]
[401299524,1768117846420,-802.03960164,0.00018672,2]
[401299525,1768117846430,-381.0,0.00018686,2]
[401299526,1768117846440,-381.0,0.00018692,2]
[401299527,1768117846451,-381.0,0.00018699,2]
[401299528,1768117846460,-381.0,0.00018786,2]
[401299529,1768117846470,-381.0,0.00018804,2]
[401299531,1768117846480,-381.0,0.00018832,2]
[401299533,1768117846489,-3382.93313115,0.00018863,2]
[401299534,1768117846499,-801.07,0.000189,2]
[401299537,1768117846509,-303.10001603,0.000189,2]
[401299539,1768117846519,-381.0,0.00018949,2]
[401299541,1768117846529,-1000.0,0.00018958,2]
[401299543,1768117846539,-1000.0,0.00018958,2]
[401299545,1768117846549,-579.0,0.00018958,2]
[401299547,1768117846559,-303.10001603,0.00019089,2]
[401299548,1768117846570,-381.0,0.0001917,2]
[401299549,1768117846579,-506.7938,0.00019178,2]
[401299550,1768117846589,-200.0,0.00019178,2]
[401299551,1768117846599,-506.7938,0.00019178,2]
[401299552,1768117846609,-16224.21,0.000192,2]
[401299553,1768117846618,-2378.23,0.000192,2]
[401299554,1768117846628,-303.10001603,0.00019278,2]
[401299555,1768117846637,-381.0,0.00019285,2]
[401299556,1768117846646,-163.88,0.000193,2]
[401299557,1768117846655,-166.96,0.000193,2]
[401299558,1768117846664,-167.58,0.000193,2]
[401299559,1768117846673,-381.0,0.00019323,2]
[401299560,1768117846682,-381.0,0.00019334,2]
[401299561,1768117846691,-801.07,0.000194,2]
[401299562,1768117846700,-303.10001603,0.00019467,2]
[401299563,1768117846709,-381.0,0.00019487,2]
[401299564,1768117846720,-506.7938,0.00019589,3]
[401299565,1768117846730,-506.7938,0.00019589,3]
[401299566,1768117846739,-303.10001603,0.00019656,2]
[401299567,1768117846748,-454.65002405,0.00019845,4]
[401299568,1768117846757,-801.07,0.000199,2]
[401299569,1768117846767,-506.7938,0.0002,4]
[401299570,1768117846776,-151.97857558,0.0002,2]
[401299571,1768117846786,-454.65002405,0.00020034,4]
[401299572,1768117846797,-281.87,0.00020055,2]
[401299573,1768117846811,-468.6,0.00020192,2]
[401299574,1768117846820,-454.65002405,0.00020223,4]
[401299575,1768117846829,-801.07,0.000204,2]
[401299576,1768117846838,-454.65002405,0.00020412,4]
[401299577,1768117846848,-1208.67496696,0.0002057,2]
[401299578,1768117846858,-454.65002405,0.00020601,4]
[401299579,1768117846867,-878.02230074,0.00020672,2]
[401299580,1768117846877,-12757.23540207,0.00020701,2]
[401299581,1768117846887,-3588.20550987,0.00020767,2]
[401299582,1768117846897,-1000.0,0.00020854,2]
[401299583,1768117846906,-1000.0,0.00020854,2]
[401299584,1768117846916,-1000.0,0.00020854,2]
[401299585,1768117846926,-151.0,0.000209,3]
[401299586,1768117846935,-801.07,0.000209,2]
[401299587,1768117846945,-801.07,0.000214,2]
[401299588,1768117846954,-801.07,0.000219,2]
[401299589,1768117846963,-585.11053,0.00021918,2]
[401299590,1768117846974,-152.90727816,0.00021918,2]
[401299591,1768117846983,-468.6,0.00022069,2]
[401299592,1768117846992,-801.07,0.000224,2]
[401299593,1768117847002,-954.00499984,0.00022672,2]
[401299594,1768117847011,-1208.67496696,0.00022899,2]
[401299595,1768117847021,-1000.0,0.0002294,10]
[401299596,1768117847031,-1000.0,0.0002294,10]
[401299597,1768117847040,-1000.0,0.0002294,10]
[401299598,1768117847050,-715.0,0.0002294,10]
[401299599,1768117847059,-801.07,0.00023,2]
[401299600,1768117847068,-801.07,0.000235,2]
[401299601,1768117847078,-468.6,0.00023946,2]
[401299602,1768117847089,-801.07,0.00024,2]
[401299603,1768117847098,-801.07,0.000245,2]
[401299604,1768117847107,-500.0,0.00024658,2]
[401299605,1768117847117,-1029.98769895,0.00024672,2]
[401299606,1768117847128,-12757.23540207,0.00024743,2]
[401299607,1768117847138,-500.0,0.00024795,2]
[401299608,1768117847148,-16224.21,0.000248,2]
[401299609,1768117847157,-66274.5706616,0.000248,2]
[401299610,1768117847166,-3588.20550987,0.00024832,2]
[401299611,1768117847175,-400097.821185,0.000249,2]
[401299612,1768117847185,-500.0,0.00024932,2]
[401299613,1768117847194,-2378.23,0.00025,14]
[401299614,1768117847204,-801.07,0.00025,2]
[401299615,1768117847213,-500.0,0.00025069,2]
[401299616,1768117847222,-250.0,0.00025205,2]
[401299617,1768117847231,-500.0,0.00025206,2]
[401299618,1768117847240,-1208.67496696,0.00025228,2]
[401299619,1768117847250,-1000.0,0.00025234,10]
[401299620,1768117847260,-1000.0,0.00025234,10]
[401299621,1768117847270,-1000.0,0.00025234,10]
[401299622,1768117847278,-585.11053,0.00025342,2]
[401299623,1768117847292,-500.0,0.00025343,2]
[401299624,1768117847301,-500.0,0.0002548,2]
[401299625,1768117847310,-801.07,0.000255,2]
[401299626,1768117847319,-261.77529652,0.00025507,14]
[401299627,1768117847328,-500.0,0.00025617,2]
[401299628,1768117847337,-350.0,0.00025753,2]
[401299629,1768117847346,-255.99235489,0.00025754,2]
[401299630,1768117847355,-468.6,0.00025823,2]
[401299631,1768117847450,-2000.51544348,0.0002587,2]
[401299632,1768117847460,-801.07,0.00026,2]
[401299633,1768117847470,-450.0,0.00026301,2]
[401299634,1768117847480,-801.07,0.000265,2]
[401299635,1768117847490,-1105.97039805,0.00026672,2]
[401299636,1768117847499,-550.0,0.00026849,2]
[401299637,1768117847508,-801.07,0.000271,2]
[401299638,1768117847518,-181.17141011,0.00027137,2]
[401299639,1768117847527,-182.0,0.00027151,23]
[401299640,1768117847537,-702.10519323,0.00027397,5]
[401299641,1768117847547,-300.0,0.00027397,2]
[401299642,1768117847556,-300.0,0.00027397,2]
[401299643,1768117847566,-300.0,0.00027397,2]
[401299644,1768117847575,-300.0,0.00027397,2]
[401299645,1768117847585,-1208.67496696,0.00027556,2]
[401299646,1768117847594,-801.07,0.000276,2]
[401299647,1768117847607,-468.6,0.00027699,3]
[401299648,1768117847617,-234.89,0.00027788,2]
[401299649,1768117847626,-5000.0,0.00028037,2]
[401299650,1768117847635,-801.07,0.000281,2]
[401299651,1768117847644,-801.07,0.000286,2]
[401299652,1768117847653,-1181.95309715,0.00028672,2]
[401299653,1768117847663,-585.11053,0.00028767,60]
[401299654,1768117847672,-12757.23540207,0.00028786,2]
[401299655,1768117847681,-211.0,0.00028795,31]
[401299656,1768117847690,-801.07,0.000291,2]
[401299657,1768117847700,-500.0,0.00029469,7]
[401299658,1768117847710,-1112.0,0.00029491,2]
[401299659,1768117847719,-16224.21,0.000295,2]
[401299660,1768117847727,-468.6,0.00029576,4]
[401299661,1768117847736,-801.07,0.000296,2]
[401299662,1768117847746,-536.72987461,0.00029749,7]
[401299663,1768117847756,-210.77216325,0.00029799,5]
[401299664,1768117847765,-1208.67496696,0.00029885,2]
[401299665,1768117847774,-258.50979211,0.0003,10]
[401299666,1768117847783,-2378.23,0.0003,14]
[401299667,1768117847792,-801.07,0.000301,2]
[401299668,1768117847801,-300.0,0.00030137,5]
[401299669,1768117847813,-1000.0,0.00030137,14]
[401299670,1768117847823,-151.0,0.00030137,14]
[401299671,1768117847832,-5000.0,0.00030203,2]
[401299672,1768117847841,-1257.93579626,0.00030672,2]
[401299673,1768117847851,-210.77216324,0.00030721,10]
[401299674,1768117847861,-151.0,0.000308,14]
[401299675,1768117847870,-162.0,0.00030986,43]
[401299676,1768117847880,-468.6,0.00031453,5]
[401299677,1768117847889,-1208.67496696,0.00032214,2]
[401299678,1768117847898,-5000.0,0.0003237,2]
[401299679,1768117847908,-171.0,0.000324,120]
[401299680,1768117847917,-1000.0,0.00032433,14]
[401299681,1768117847927,-1333.91849536,0.00032672,2]
[401299682,1768117847936,-12757.23540207,0.00032829,2]
[401299683,1768117847945,-999.0,0.00032876,120]
[401299684,1768117847954,-500.0,0.00032877,8]
[401299685,1768117847964,-694.64,0.00032877,10]
[401299686,1768117847973,-300.0,0.00032877,5]
[401299687,1768117847983,-450.0,0.00032877,5]
[401299688,1768117847992,-174.0,0.00033178,58]
[401299689,1768117848002,-180.93086226,0.000332,117]
[401299690,1768117848011,-180.93086222,0.000332,117]
[401299691,1768117848020,-180.93086222,0.000332,117]
[401299692,1768117848030,-180.93086222,0.000332,117]
[401299693,1768117848041,-1045039.0068,0.0003322,30]
[401299694,1768117848050,-151.0,0.0003322,31]
[401299695,1768117848061,-151.0,0.0003322,31]
[401299696,1768117848070,-163.313773,0.0003322,31]
[401299697,1768117848079,-151.0,0.0003322,31]
[401299698,1768117848088,-264.224,0.0003322,31]
[401299699,1768117848098,-264.224,0.0003322,31]
[401299700,1768117848107,-264.224,0.0003322,31]
[401299701,1768117848116,-264.224,0.0003322,31]
[401299702,1768117848126,-151.0,0.0003322,31]
[401299703,1768117848135,-156.82101,0.0003322,31]
[401299704,1768117848147,-151.0,0.0003322,31]
[401299705,1768117848158,-151.0,0.0003322,31]
[401299706,1768117848168,-151.0,0.0003322,7]
[401299707,1768117848177,-151.0,0.0003322,7]
[401299708,1768117848187,-151.0,0.0003322,31]
[401299709,1768117848195,-151.0,0.0003322,31]
[401299710,1768117848205,-151.0,0.0003322,31]
[401299711,1768117848215,-301.393574,0.0003322,31]
[401299712,1768117848224,-151.0,0.0003322,31]
[401299713,1768117848234,-151.0,0.0003322,31]
[401299714,1768117848243,-151.0,0.0003322,31]
[401299715,1768117848253,-161.662681,0.0003322,31]
[401299716,1768117848262,-151.0,0.0003322,31]
[401299717,1768117848271,-728.329358,0.0003322,31]
[401299718,1768117848281,-728.329358,0.0003322,31]
[401299719,1768117848293,-728.329358,0.0003322,31]
[401299720,1768117848303,-728.329358,0.0003322,31]
[401299721,1768117848314,-200.586455,0.0003322,31]
[401299722,1768117848325,-151.0,0.0003322,2]
[401299723,1768117848337,-160.002934,0.0003322,31]
[401299724,1768117848346,-151.0,0.0003322,31]
[401299725,1768117848355,-151.0,0.0003322,31]
[401299726,1768117848365,-151.0,0.0003322,31]
[401299727,1768117848375,-151.0,0.0003322,31]
[401299728,1768117848385,-151.0,0.0003322,31]
[401299729,1768117848394,-151.0,0.0003322,31]
[401299730,1768117848404,-151.0,0.0003322,31]
[401299731,1768117848415,-151.0,0.0003322,31]
[401299732,1768117848425,-151.0,0.0003322,31]
[401299733,1768117848435,-226.782828,0.0003322,31]
[401299734,1768117848445,-173.073557,0.0003322,31]
[401299735,1768117848453,-151.0,0.0003322,31]
[401299736,1768117848462,-151.0,0.0003322,31]
[401299737,1768117848471,-151.0,0.0003322,31]
[401299738,1768117848482,-173.073557,0.0003322,31]
[401299739,1768117848493,-173.073557,0.0003322,31]
[401299740,1768117848504,-151.0,0.0003322,31]
[401299741,1768117848515,-173.073557,0.0003322,31]
[401299742,1768117848527,-151.0,0.0003322,31]
[401299743,1768117848539,-151.0,0.0003322,31]
[401299744,1768117848550,-172.824008,0.0003322,31]
[401299745,1768117848560,-151.0,0.0003322,31]
[401299746,1768117848570,-151.0,0.0003322,31]
[401299747,1768117848581,-151.0,0.0003322,31]
[401299748,1768117848593,-151.0,0.0003322,31]
[401299749,1768117848604,-151.0,0.0003322,31]
[401299750,1768117848614,-151.0,0.0003322,31]
[401299751,1768117848625,-151.0,0.0003322,31]
[401299752,1768117848635,-1371.756404,0.0003322,31]
[401299753,1768117848645,-1371.756404,0.0003322,31]
[401299754,1768117848654,-152.567384,0.0003322,31]
[401299755,1768117848665,-1371.756404,0.0003322,31]
[401299756,1768117848676,-1371.756404,0.0003322,31]
[401299757,1768117848686,-151.0,0.0003322,31]
[401299758,1768117848697,-151.0,0.0003322,31]
[401299759,1768117848707,-151.0,0.0003322,31]
[401299760,1768117848718,-156.419626,0.0003322,31]
[401299761,1768117848728,-1112.0,0.00033299,2]
[401299762,1768117848738,-468.6,0.0003333,6]
[401299763,1768117848747,-1002.20117456,0.00033377,15]
[401299764,1768117848758,-600.0,0.00033425,5]
[401299765,1768117848768,-210.0,0.00033699,5]
[401299766,1768117848777,-237.622,0.00033874,37]
[401299767,1768117848786,-625.49,0.000339,7]
[401299768,1768117848795,-999.0,0.00033972,120]
[401299769,1768117848808,-900.0,0.00033973,5]
[401299770,1768117848817,-725.0,0.00034263,30]
[401299771,1768117848827,-691.0,0.00034263,30]
[401299772,1768117848839,-547.0,0.00034263,30]
[401299773,1768117848851,-409.67,0.00034285,60]
[401299774,1768117848860,-409.67,0.00034385,60]
[401299775,1768117848870,-16224.21,0.000344,14]
[401299776,1768117848882,-409.67,0.00034485,60]
[401299777,1768117848894,-1200.0,0.00034521,5]
[401299778,1768117848904,-270.0,0.00034521,5]
[401299779,1768117848915,-5000.0,0.00034536,3]
[401299780,1768117848926,-1208.67496696,0.00034543,2]
[401299781,1768117848937,-409.67,0.00034585,60]
[401299782,1768117848947,-2378.23,0.000346,30]
[401299783,1768117848957,-1409.90119446,0.00034672,120]
[401299784,1768117848967,-409.67,0.00034685,60]
[401299785,1768117848976,-1000.0,0.00034729,14]
[401299786,1768117848986,-333.0,0.00034772,2]
[401299787,1768117848996,-409.67,0.00034785,60]